lending/lending_fUSD_20251218
["ID","MTS","AMOUNT","RATE_DAILY","PERIOD"]
[399031247,1766076838831,-500.0,0.00041095,120]
[399031248,1766076838841,-500.0,0.00041095,120]
[399031249,1766076838850,-500.0,0.00041095,120]
[399031250,1766076838859,-500.0,0.00041095,120]
[399031251,1766076838869,-500.0,0.00041095,120]
[399031252,1766076838878,-512.37,0.00041095,120]
[399031253,1766076838888,-500.0,0.00041095,120]
[399031254,1766076838897,-500.0,0.00041095,120]
[399031255,1766076838907,-217.7,0.00041095,120]
[399031256,1766076838916,-500.0,0.00041095,120]
[399031257,1766076838928,-254.46,0.00041095,120]
[399031258,1766076838938,-545.83,0.00041095,120]
[399031259,1766076838947,-500.0,0.00041095,120]
[399031260,1766076838956,-225.28,0.00041095,120]
[399031261,1766076838967,-169.26,0.00041095,120]
[399031262,1766076838977,-585.0,0.00041095,120]
[399031263,1766076838986,-500.0,0.00041095,120]
[399031264,1766076838997,-500.0,0.00041095,120]
[399031265,1766076839006,-634.31,0.00041095,120]
[399031266,1766076839016,-500.0,0.00041095,120]
[399031267,1766076839026,-500.0,0.00041095,120]
[399031268,1766076839035,-500.0,0.00041095,120]
[399031269,1766076839044,-500.0,0.00041095,120]
[399031270,1766076839054,-500.0,0.00041095,120]
[399031271,1766076839063,-500.0,0.00041095,120]
[399031272,1766076839072,-500.0,0.00041095,120]
[399031273,1766076839082,-500.0,0.00041095,120]
[399031274,1766076839091,-500.0,0.00041095,120]
[399031275,1766076839100,-165.78,0.00041095,120]
[399031276,1766076839111,-500.0,0.00041095,120]
[399031277,1766076839120,-500.0,0.00041095,120]
[399031278,1766076839129,-500.0,0.00041095,120]
[399031279,1766076839139,-185.46,0.00041095,120]
[399031280,1766076839148,-500.0,0.00041095,120]
[399031281,1766076839157,-500.0,0.00041095,120]
[399031282,1766076839166,-500.0,0.00041095,120]
[399031283,1766076839175,-500.0,0.00041095,120]
[399031284,1766076839186,-410.67,0.00041095,120]
[399031285,1766076839195,-500.0,0.00041095,120]
[399031286,1766076839205,-518.13,0.00041095,120]
[399031287,1766076839214,-500.0,0.00041095,120]
[399031288,1766076839223,-500.0,0.00041095,120]
[399031289,1766076839233,-500.0,0.00041095,120]
[399031290,1766076839242,-500.0,0.00041095,120]
[399031291,1766076839251,-500.0,0.00041095,120]
[399031292,1766076839260,-500.0,0.00041095,120]
[399031293,1766076839269,-500.0,0.00041095,120]
[399031294,1766076839278,-500.0,0.00041095,120]
[399031295,1766076839288,-500.0,0.00041095,120]
[399031296,1766076839298,-500.0,0.00041095,120]
[399031297,1766076839307,-500.0,0.00041095,120]
[399031298,1766076839317,-500.0,0.00041095,120]
[399031299,1766076839326,-500.0,0.00041095,120]
[399031300,1766076839335,-500.0,0.00041095,120]
[399031301,1766076839344,-500.0,0.00041095,120]
[399031302,1766076839354,-500.0,0.00041095,120]
[399031303,1766076839363,-500.0,0.00041095,120]
[399031304,1766076839372,-198.57,0.00041095,120]
[399031305,1766076839381,-500.0,0.00041095,120]
[399031306,1766076839390,-500.0,0.00041095,120]
[399031307,1766076839400,-500.0,0.00041095,120]
[399031308,1766076839409,-431.65,0.00041095,120]
[399031309,1766076839419,-500.0,0.00041095,120]
[399031310,1766076839428,-500.0,0.00041095,120]
[399031311,1766076839438,-243.02,0.00041095,120]
[399031312,1766076839448,-500.0,0.00041095,120]
[399031313,1766076839458,-500.0,0.00041095,120]
[399031314,1766076839467,-500.0,0.00041095,120]
[399031315,1766076839477,-500.0,0.00041095,120]
[399031316,1766076839487,-500.0,0.00041095,60]
[399031317,1766076839497,-442.44,0.00041095,60]
[399031318,1766076839506,-500.1,0.00041095,120]
[399031319,1766076839516,-500.0,0.00041095,120]
[399031320,1766076839526,-641.18,0.00041095,120]
[399031321,1766076839535,-539.25,0.00041095,120]
[399031322,1766076839544,-500.0,0.00041095,120]
[399031323,1766076839554,-500.0,0.00041095,120]
[399031324,1766076839563,-344.73,0.00041095,120]
[399031325,1766076839571,-500.0,0.00041095,120]
[399031326,1766076839580,-635.8,0.00041095,120]
[399031327,1766076839590,-500.0,0.00041095,120]
[399031328,1766076839599,-500.0,0.00041095,120]
[399031329,1766076839609,-500.0,0.00041095,120]
[399031330,1766076839618,-634.48,0.00041095,120]
[399031331,1766076839628,-500.0,0.00041095,120]
[399031332,1766076839637,-500.0,0.00041095,120]
[399031333,1766076839647,-500.0,0.00041095,120]
[399031334,1766076839656,-393.21,0.00041095,120]
[399031335,1766076839665,-500.0,0.00041095,120]
[399031336,1766076839674,-156.84,0.00041095,120]
[399031337,1766076839683,-581.38,0.00041095,120]
[399031338,1766076839692,-500.0,0.00041095,120]
[399031339,1766076839706,-500.0,0.00041095,120]
[399031340,1766076839716,-500.0,0.00041095,120]
[399031341,1766076839725,-227.79,0.00041095,120]
[399031342,1766076839734,-503.68,0.00041095,120]
[399031343,1766076839743,-500.0,0.00041095,120]
[399031344,1766076839752,-500.0,0.00041095,120]
[399031345,1766076839761,-500.0,0.00041095,120]
[399031346,1766076839770,-500.0,0.00041095,120]
[399031347,1766076839779,-394.22,0.00041095,120]
[399031348,1766076839788,-500.0,0.00041095,120]
[399031349,1766076839798,-521.14,0.00041095,120]
[399031350,1766076839807,-500.0,0.00041095,120]
[399031351,1766076839816,-500.0,0.00041095,120]
[399031352,1766076839825,-500.0,0.00041095,120]
[399031353,1766076839834,-500.0,0.00041095,120]
[399031354,1766076839844,-500.0,0.00041095,120]
[399031355,1766076839855,-596.39,0.00041095,120]
[399031356,1766076839864,-500.0,0.00041095,120]
[399031357,1766076839873,-500.0,0.00041095,120]
[399031358,1766076839882,-500.0,0.00041095,120]
[399031359,1766076839893,-500.0,0.00041095,120]
[399031360,1766076839902,-191.57,0.00041095,120]
[399031361,1766076839913,-398.56,0.00041095,120]
[399031362,1766076839924,-500.0,0.00041095,120]
[399031363,1766076839937,-500.0,0.00041095,120]
[399031364,1766076839946,-500.0,0.00041095,120]
[399031365,1766076839955,-500.0,0.00041095,120]
[399031366,1766076839966,-500.0,0.00041095,120]
[399031367,1766076839976,-466.3,0.00041095,120]
[399031368,1766076839987,-500.0,0.00041095,120]
[399031369,1766076839996,-500.0,0.00041095,120]
[399031370,1766076840008,-500.0,0.00041095,120]
[399031371,1766076840017,-290.71,0.00041095,120]
[399031372,1766076840026,-500.0,0.00041095,120]
[399031373,1766076840035,-500.0,0.00041095,120]
[399031374,1766076840045,-500.0,0.00041095,120]
[399031375,1766076840054,-500.0,0.00041095,120]
[399031376,1766076840063,-500.0,0.00041095,120]
[399031377,1766076840073,-629.53,0.00041095,120]
[399031378,1766076840084,-500.0,0.00041095,120]
[399031379,1766076840093,-207.43,0.00041095,120]
[399031380,1766076840103,-552.53,0.00041095,120]
[399031381,1766076840112,-500.0,0.00041095,120]
[399031382,1766076840122,-500.0,0.00041095,120]
[399031383,1766076840131,-540.21,0.00041095,120]
[399031384,1766076840140,-500.0,0.00041095,120]
[399031385,1766076840149,-376.26,0.00041095,120]
[399031386,1766076840158,-500.0,0.00041095,120]
[399031387,1766076840168,-500.0,0.00041095,120]
[399031388,1766076840177,-180.36,0.00041095,120]
[399031389,1766076840186,-246.73,0.00041095,120]
[399031390,1766076840195,-500.0,0.00041095,120]
[399031391,1766076840205,-500.0,0.00041095,120]
[399031392,1766076840215,-500.0,0.00041095,120]
[399031393,1766076840224,-500.0,0.00041095,120]
[399031394,1766076840233,-500.0,0.00041095,120]
[399031395,1766076840242,-500.0,0.00041095,120]
[399031396,1766076840252,-440.07,0.00041095,120]
[399031397,1766076840261,-161.37570704,0.00041095,120]
[399031398,1766076840270,-403.75,0.00041095,120]
[399031399,1766076840280,-500.0,0.00041095,120]
[399031400,1766076840289,-500.0,0.00041095,120]
[399031401,1766076840298,-586.17,0.00041095,120]
[399031402,1766076840307,-606.06,0.00041095,120]
[399031403,1766076840316,-500.0,0.00041095,120]
[399031404,1766076840325,-395.95,0.00041095,120]
[399031405,1766076840334,-500.0,0.00041095,120]
[399031406,1766076840343,-506.69,0.00041095,120]
[399031407,1766076840353,-500.0,0.00041095,120]
[399031408,1766076840362,-172.7,0.00041095,120]
[399031409,1766076840371,-500.0,0.00041095,120]
[399031410,1766076840381,-500.0,0.00041095,120]
[399031411,1766076840390,-532.12,0.00041095,120]
[399031412,1766076840399,-500.0,0.00041095,120]
[399031413,1766076840409,-500.0,0.00041095,120]
[399031414,1766076840418,-500.0,0.00041095,120]
[399031415,1766076840428,-275.62,0.00041095,120]
[399031416,1766076840438,-500.0,0.00041095,120]
[399031417,1766076840447,-500.0,0.00041095,120]
[399031418,1766076840456,-500.0,0.00041095,120]
[399031419,1766076840465,-500.0,0.00041095,120]
[399031420,1766076840475,-500.0,0.00041095,120]
[399031421,1766076840485,-444.72,0.00041095,120]
[399031422,1766076840494,-500.0,0.00041095,120]
[399031423,1766076840504,-466.85,0.00041095,120]
[399031424,1766076840513,-500.0,0.00041095,120]
[399031425,1766076840523,-500.0,0.00041095,120]
[399031426,1766076840532,-179.85,0.00041095,120]
[399031427,1766076840541,-500.0,0.00041095,120]
[399031428,1766076840551,-500.0,0.00041095,120]
[399031429,1766076840560,-251.61,0.00041095,120]
[399031430,1766076840569,-500.0,0.00041095,120]
[399031431,1766076840578,-160.15,0.00041095,120]
[399031432,1766076840587,-500.0,0.00041095,120]
[399031433,1766076840596,-500.0,0.00041095,120]
[399031434,1766076840605,-375.6,0.00041095,120]
[399031435,1766076840614,-500.0,0.00041095,120]
[399031436,1766076840624,-500.0,0.00041095,120]
[399031437,1766076840634,-168.2,0.00041095,120]
[399031438,1766076840643,-500.0,0.00041095,120]
[399031439,1766076840652,-202.66,0.00041095,120]
[399031440,1766076840661,-500.0,0.00041095,120]
[399031441,1766076840670,-622.54140962,0.00041095,120]
[399031442,1766076840679,-500.0,0.00041095,120]
[399031443,1766076840689,-500.0,0.00041095,120]
[399031444,1766076840698,-500.0,0.00041095,120]
[399031445,1766076840707,-500.0,0.00041095,120]
[399031446,1766076840717,-500.0,0.00041095,120]
[399031447,1766076840726,-500.0,0.00041095,120]
[399031448,1766076840735,-500.0,0.00041095,120]
[399031449,1766076840744,-159.52,0.00041095,120]
[399031450,1766076840754,-500.0,0.00041095,120]
[399031451,1766076840764,-500.0,0.00041095,120]
[399031452,1766076840773,-343.76,0.00041095,120]
[399031453,1766076840782,-307.05690484,0.00041095,120]
[399031454,1766076840793,-500.0,0.00041095,120]
[399031455,1766076840802,-500.0,0.00041095,120]
[399031456,1766076840811,-461.06,0.00041095,120]
[399031457,1766076840820,-500.0,0.00041095,120]
[399031458,1766076840830,-500.0,0.00041095,120]
[399031459,1766076840839,-500.0,0.00041095,120]
[399031460,1766076840847,-500.0,0.00041095,120]
[399031461,1766076840857,-639.45,0.00041095,120]
[399031462,1766076840867,-500.0,0.00041095,60]
[399031463,1766076840876,-517.21,0.00041095,60]
[399031464,1766076840885,-500.0,0.00041095,120]
[399031465,1766076840894,-302.05,0.00041095,120]
[399031466,1766076840903,-500.0,0.00041095,120]
[399031467,1766076840912,-500.0,0.00041095,120]
[399031468,1766076840922,-179.89,0.00041095,120]
[399031469,1766076840935,-884.030512,0.00041095,120]
[399031470,1766076840944,-884.030512,0.00041095,120]
[399031471,1766076840953,-500.0,0.00041095,120]
[399031472,1766076840963,-500.0,0.00041095,120]
[399031473,1766076840972,-332.06,0.00041095,120]
[399031474,1766076840981,-153.008626,0.00041095,120]
[399031475,1766076840990,-500.0,0.00041095,120]
[399031476,1766076841000,-153.008626,0.00041095,120]
[399031477,1766076841009,-500.0,0.00041095,120]
[399031478,1766076841018,-155.29,0.00041095,120]
[399031479,1766076841027,-2234.31116,0.00041095,120]
[399031480,1766076841036,-2234.31116,0.00041095,120]
[399031481,1766076841046,-1561.3834,0.00041095,120]
[399031482,1766076841055,-1561.3834,0.00041095,120]
[399031483,1766076841064,-500.0,0.00041095,120]
[399031484,1766076841074,-172.146241,0.00041095,120]
[399031485,1766076841083,-172.146241,0.00041095,120]
[399031486,1766076841092,-2683.375979,0.00041095,120]
[399031487,1766076841102,-2683.375979,0.00041095,120]
[399031488,1766076841111,-500.0,0.00041095,120]
[399031489,1766076841120,-500.0,0.00041095,120]
[399031490,1766076841129,-500.0,0.00041095,120]
[399031491,1766076841138,-500.0,0.00041095,120]
[399031492,1766076841148,-500.0,0.00041095,120]
[399031493,1766076841157,-961.2,0.00041095,120]
[399031494,1766076841166,-961.2,0.00041095,120]
[399031495,1766076841175,-961.2,0.00041095,120]
[399031496,1766076841185,-961.2,0.00041095,120]
[399031497,1766076841194,-961.2,0.00041095,120]
[399031498,1766076841203,-961.2,0.00041095,120]
[399031499,1766076841213,-961.2,0.00041095,120]
[399031500,1766076841222,-961.2,0.00041095,120]
[399031501,1766076841231,-961.2,0.00041095,120]
[399031502,1766076841240,-961.2,0.00041095,120]
[399031503,1766076841249,-961.2,0.00041095,120]
[399031504,1766076841259,-961.2,0.00041095,120]
[399031505,1766076841268,-961.2,0.00041095,120]
[399031506,1766076841277,-961.2,0.00041095,120]
[399031507,1766076841287,-961.2,0.00041095,120]
[399031508,1766076841297,-961.2,0.00041095,120]
[399031509,1766076841306,-961.2,0.00041095,120]
[399031510,1766076841315,-961.2,0.00041095,120]
[399031511,1766076841325,-500.0,0.00041095,120]
[399031512,1766076841335,-961.2,0.00041095,120]
[399031513,1766076841345,-961.2,0.00041095,120]
[399031514,1766076841354,-961.2,0.00041095,120]
[399031515,1766076841366,-961.2,0.00041095,120]
[399031516,1766076841375,-961.2,0.00041095,120]
[399031517,1766076841385,-961.33870613,0.00041095,120]
[399031518,1766076841395,-500.0,0.00041095,120]
[399031519,1766076841404,-322.72,0.00041095,120]
[399031520,1766076841414,-500.0,0.00041095,120]
[399031521,1766076841424,-500.0,0.00041095,120]
[399031522,1766076841434,-273.83,0.00041095,120]
[399031523,1766076841445,-500.0,0.00041095,120]
[399031524,1766076841454,-500.0,0.00041095,120]
[399031525,1766076841463,-500.0,0.00041095,120]
[399031526,1766076841473,-500.0,0.00041095,120]
[399031527,1766076841483,-271.63,0.00041095,120]
[399031528,1766076841493,-500.0,0.00041095,120]
[399031529,1766076841502,-514.07,0.00041095,120]
[399031530,1766076841511,-500.0,0.00041095,120]
[399031531,1766076841521,-500.0,0.00041095,120]
[399031532,1766076841531,-500.0,0.00041095,120]
[399031533,1766076841542,-500.0,0.00041095,120]
[399031534,1766076841553,-500.0,0.00041095,120]
[399031535,1766076841564,-500.0,0.00041095,120]
[399031536,1766076841576,-500.0,0.00041095,120]
[399031537,1766076841587,-500.0,0.00041095,120]
[399031538,1766076841598,-500.0,0.00041095,120]
[399031539,1766076841612,-500.0,0.00041095,120]
[399031540,1766076841625,-500.0,0.00041095,120]
[399031541,1766076841636,-500.0,0.00041095,120]
[399031542,1766076841648,-500.0,0.00041095,120]
[399031543,1766076841660,-217.34,0.00041095,120]
[399031544,1766076841670,-645.54,0.00041095,120]
[399031545,1766076841681,-500.0,0.00041095,120]
[399031546,1766076841692,-164.17,0.00041095,120]
[399031547,1766076841703,-596.4,0.00041095,120]
[399031548,1766076841713,-500.0,0.00041095,120]
[399031549,1766076841722,-630.5,0.00041095,120]
[399031550,1766076841734,-500.0,0.00041095,120]
[399031551,1766076841743,-171.79,0.00041095,120]
[399031552,1766076841753,-526.04,0.00041095,120]
[399031553,1766076841763,-500.0,0.00041095,120]
[399031554,1766076841772,-317.34038153,0.00041095,120]
[399031555,1766076841781,-500.0,0.00041095,120]
[399031556,1766076841791,-192.06,0.00041095,120]
[399031557,1766076841801,-500.0,0.00041095,2]
[399031558,1766076841810,-500.0,0.00041095,2]
[399031559,1766076841819,-500.0,0.00041095,120]
[399031560,1766076841830,-500.0,0.00041095,2]
[399031561,1766076841839,-501.27299036,0.00041095,2]
[399031562,1766076841849,-500.0,0.00041095,120]
[399031563,1766076841863,-1019.75,0.00041095,120]
[399031564,1766076841874,-1019.75,0.00041095,120]
[399031565,1766076841884,-1019.75,0.00041095,120]
[399031566,1766076841894,-1019.75,0.00041095,120]
[399031567,1766076841903,-1019.75,0.00041095,120]
[399031568,1766076841912,-500.0,0.00041095,120]
[399031569,1766076841923,-596.13,0.00041095,120]
[399031570,1766076841936,-637.77,0.00041095,120]
[399031571,1766076841945,-574.77,0.00041095,120]
[399031572,1766076841955,-500.0,0.00041095,120]
[399031573,1766076841965,-358.43,0.00041095,120]
[399031574,1766076841974,-500.0,0.00041095,120]
[399031575,1766076841984,-425.0,0.00041095,120]
[399031576,1766076841995,-500.0,0.00041095,120]
[399031577,1766076842005,-500.0,0.00041095,120]
[399031578,1766076842014,-500.0,0.00041095,120]
[399031579,1766076842024,-500.0,0.00041095,120]
[399031580,1766076842033,-500.0,0.00041095,120]
[399031581,1766076842043,-610.67,0.00041095,120]
[399031582,1766076842053,-500.0,0.00041095,120]
[399031583,1766076842062,-461.65,0.00041095,120]
[399031584,1766076842072,-500.0,0.00041095,120]
[399031585,1766076842082,-500.0,0.00041095,120]
[399031586,1766076842092,-193.02573651,0.00041095,120]
[399031587,1766076842101,-500.0,0.00041095,120]
[399031588,1766076842115,-151.7,0.00041095,120]
[399031589,1766076842124,-500.0,0.00041095,120]
[399031590,1766076842135,-303.32,0.00041095,120]
[399031591,1766076842145,-500.0,0.00041095,120]
[399031592,1766076842154,-263.34,0.00041095,120]
[399031593,1766076842164,-500.0,0.00041095,120]
[399031594,1766076842174,-327.2,0.00041095,120]
[399031595,1766076842183,-500.0,0.00041095,120]
[399031596,1766076842192,-500.0,0.00041095,120]
[399031597,1766076842202,-250.55,0.00041095,120]
[399031598,1766076842211,-500.0,0.00041095,120]
[399031599,1766076842221,-500.0,0.00041095,120]
[399031600,1766076842230,-500.0,0.00041095,120]
[399031601,1766076842240,-500.0,0.00041095,120]
[399031602,1766076842249,-365.48,0.00041095,120]
[399031603,1766076842258,-500.0,0.00041095,120]
[399031604,1766076842267,-178.75,0.00041095,120]
[399031605,1766076842276,-500.0,0.00041095,120]
[399031606,1766076842285,-268.25387199,0.00041095,120]
[399031607,1766076842294,-568.43,0.00041095,120]
[399031608,1766076842303,-500.0,0.00041095,120]
[399031609,1766076842312,-180.26,0.00041095,120]
[399031610,1766076842322,-547.37,0.00041095,120]
[399031611,1766076842331,-500.0,0.00041095,120]
[399031612,1766076842340,-500.0,0.00041095,120]
[399031613,1766076842350,-500.0,0.00041095,120]
[399031614,1766076842361,-170.96,0.00041095,120]
[399031615,1766076842370,-500.0,0.00041095,120]
[399031616,1766076842378,-500.0,0.00041095,120]
[399031617,1766076842387,-500.0,0.00041095,120]
[399031618,1766076842396,-414.63,0.00041095,120]
[399031619,1766076842406,-500.0,0.00041095,120]
[399031620,1766076842415,-564.89,0.00041095,120]
[399031621,1766076842424,-500.0,0.00041095,120]
[399031622,1766076842433,-587.15,0.00041095,120]
[399031623,1766076842442,-500.0,0.00041095,120]
[399031624,1766076842451,-500.0,0.00041095,120]
[399031625,1766076842460,-500.0,0.00041095,120]
[399031626,1766076842469,-500.0,0.00041095,120]
[399031627,1766076842478,-500.0,0.00041095,120]
[399031628,1766076842487,-569.37925604,0.00041095,120]
[399031629,1766076842496,-500.0,0.00041095,120]
[399031630,1766076842505,-500.0,0.00041095,120]
[399031631,1766076842515,-308.09,0.00041095,120]
[399031632,1766076842524,-500.0,0.00041095,120]
[399031633,1766076842534,-582.27,0.00041095,120]
[399031634,1766076842543,-500.0,0.00041095,120]
[399031635,1766076842552,-500.0,0.00041095,120]
[399031636,1766076842561,-500.0,0.00041095,120]
[399031637,1766076842570,-500.0,0.00041095,120]
[399031638,1766076842579,-500.0,0.00041095,120]
[399031639,1766076842588,-336.61,0.00041095,120]
[399031640,1766076842597,-500.0,0.00041095,120]
[399031641,1766076842606,-180.13,0.00041095,120]
[399031642,1766076842616,-500.0,0.00041095,120]
[399031643,1766076842625,-626.48,0.00041095,120]
[399031644,1766076842634,-300.0,0.00041095,2]
[399031645,1766076842643,-300.0,0.00041095,2]
[399031646,1766076842652,-300.0,0.00041095,2]
[399031647,1766076842661,-300.58455481,0.00041095,2]
[399031648,1766076842670,-500.0,0.00041095,120]
[399031649,1766076842679,-500.0,0.00041095,120]
[399031650,1766076842687,-192.59,0.00041095,120]
[399031651,1766076842696,-500.0,0.00041095,120]
[399031652,1766076842706,-500.0,0.00041095,120]
[399031653,1766076842715,-500.0,0.00041095,120]
[399031654,1766076842723,-356.95,0.00041095,120]
[399031655,1766076842732,-500.0,0.00041095,120]
[399031656,1766076842742,-500.0,0.00041095,120]
[399031657,1766076842750,-570.58,0.00041095,120]
[399031658,1766076842761,-500.0,0.00041095,120]
[399031659,1766076842770,-618.44,0.00041095,120]
[399031660,1766076842779,-500.0,0.00041095,120]
[399031661,1766076842788,-500.0,0.00041095,120]
[399031662,1766076842798,-339.74,0.00041095,120]
[399031663,1766076842807,-500.0,0.00041095,120]
[399031664,1766076842817,-300.62256351,0.00041095,120]
[399031665,1766076842826,-601.19,0.00041095,120]
[399031666,1766076842835,-500.0,0.00041095,120]
[399031667,1766076842845,-338.95,0.00041095,120]
[399031668,1766076842854,-500.0,0.00041095,30]
[399031669,1766076842866,-499.26,0.00041095,30]
[399031670,1766076842875,-558.56,0.00041095,120]
[399031671,1766076842885,-510.45,0.00041095,14]
[399031672,1766076842895,-500.0,0.00041095,120]
[399031673,1766076842905,-500.0,0.00041095,120]
[399031674,1766076842915,-500.0,0.00041095,120]
[399031675,1766076842927,-500.0,0.00041095,120]
[399031676,1766076842941,-471.53,0.00041095,120]
[399031677,1766076842950,-500.0,0.00041095,120]
[399031678,1766076842959,-579.1,0.00041095,120]
[399031679,1766076842971,-500.0,0.00041095,120]
[399031680,1766076842981,-500.0,0.00041095,120]
[399031681,1766076842992,-349.47,0.00041095,2]
[399031682,1766076843003,-349.47,0.00041095,2]
[399031683,1766076843013,-349.47,0.00041095,2]
[399031684,1766076843023,-500.0,0.00041095,120]
[399031685,1766076843033,-349.47,0.00041095,2]
[399031686,1766076843043,-500.0,0.00041095,120]
[399031687,1766076843053,-349.47,0.00041095,2]
[399031688,1766076843063,-500.0,0.00041095,120]
[399031689,1766076843074,-500.0,0.00041095,120]
[399031690,1766076843084,-500.0,0.00041095,120]
[399031691,1766076843094,-500.0,0.00041095,120]
[399031692,1766076843103,-500.0,0.00041095,120]
[399031693,1766076843118,-500.0,0.00041095,120]
[399031694,1766076843128,-251.88,0.00041095,120]
[399031695,1766076843138,-500.0,0.00041095,120]
[399031696,1766076843148,-500.0,0.00041095,120]
[399031697,1766076843158,-604.55,0.00041095,120]
[399031698,1766076843168,-500.0,0.00041095,120]
[399031699,1766076843177,-1029.45,0.00041095,120]
[399031700,1766076843187,-500.0,0.00041095,120]
[399031701,1766076843197,-500.0,0.00041095,120]
[399031702,1766076843206,-500.0,0.00041095,120]
[399031703,1766076843215,-176.66,0.00041095,120]
[399031704,1766076843224,-500.0,0.00041095,120]
[399031705,1766076843233,-579.22,0.00041095,120]
[399031706,1766076843243,-1143.25,0.00041095,2]
[399031707,1766076843252,-1143.25,0.00041095,2]
[399031708,1766076843261,-1143.25,0.00041095,2]
[399031709,1766076843271,-500.0,0.00041095,120]
[399031710,1766076843281,-1143.25,0.00041095,2]
[399031711,1766076843291,-584.85,0.00041095,120]
[399031712,1766076843300,-1143.25,0.00041095,2]
[399031713,1766076843309,-1143.25,0.00041095,2]
[399031714,1766076843322,-500.0,0.00041095,120]
[399031715,1766076843335,-1143.25,0.00041095,2]
[399031716,1766076843349,-500.0,0.00041095,120]
[399031717,1766076843368,-308.14,0.00041095,120]
[399031718,1766076843379,-500.0,0.00041095,120]
[399031719,1766076843389,-500.0,0.00041095,120]
[399031720,1766076843400,-173.74,0.00041095,120]
[399031721,1766076843411,-500.0,0.00041095,120]
[399031722,1766076843424,-376.19,0.00041095,120]
[399031723,1766076843435,-500.0,0.00041095,120]
[399031724,1766076843447,-500.0,0.00041095,120]
[399031725,1766076843459,-500.0,0.00041095,120]
[399031726,1766076843472,-365.82,0.00041095,120]
[399031727,1766076843485,-235.63,0.00041095,120]
[399031728,1766076843497,-500.0,0.00041095,120]
[399031729,1766076843509,-500.0,0.00041095,120]
[399031730,1766076843521,-500.0,0.00041095,120]
[399031731,1766076843533,-500.0,0.00041095,120]
[399031732,1766076843544,-322.44,0.00041095,120]
[399031733,1766076843554,-500.0,0.00041095,120]
[399031734,1766076843564,-500.0,0.00041095,120]
[399031735,1766076843575,-500.0,0.00041095,120]
[399031736,1766076843587,-379.66,0.00041095,120]
[399031737,1766076843598,-502.78,0.00041095,120]
[399031738,1766076843611,-500.0,0.00041095,120]
[399031739,1766076843624,-500.0,0.00041095,120]
[399031740,1766076843636,-500.0,0.00041095,120]
[399031741,1766076843649,-165.03,0.00041095,120]
[399031742,1766076843662,-500.0,0.00041095,120]
[399031743,1766076843674,-164.28,0.00041095,120]
[399031744,1766076843687,-500.0,0.00041095,120]
[399031745,1766076843700,-500.0,0.00041095,120]
[399031746,1766076843713,-500.0,0.00041095,30]